{"text_format":"1","workbook":"xlsx","n_sheets":1,"sheets":["Tabella 4.5"],"not_rendered":{"charts":0,"images":2,"macros":1,"external_links":0,"defined_names":1,"comments":0,"pivot_tables":0},"unopened":[],"bounds":{"document_bytes":16777216,"sheet_cells":100000,"rows_first":2000,"rows_last":500,"rows_between":2000,"halvings":0,"cell_chars":16384,"cell_head_chars":4096},"cells_cut":0,"cells_raw":0,"read":"whole","date_system":"1900"}

{"sheet":"Tabella 4.5","index":0,"n_rows":28,"n_cols":20,"rows_kept":28,"cut":false,"hidden":false,"merged":[[2,3,2,6],[2,7,2,16],[27,1,27,16],[1,1,1,17],[0,1,0,17]]}
[null,"PMI GARANTITE E DETTAGLIO GARANZIE"]
[null,"4.5 Dettaglio delle garanzie rilasciate alle piccole e medie imprese nell’anno di riferimento e negli anni precedenti "]
[null,null,null,"FINANZIAMENTO ",null,null,null,"GARANZIE A VALERE SUL FONDO RISCHI",null,null,null,null,null,null,null,null,null,null,null,{"$f":"CONCATENATE($D$5+$H$5+$D$50+$H$50+$D$10+$H$10+$D$100+$H$100,11)","v":"011"}]
[null,"N.","Ragione/Denominazione sociale","Importo finanziamento (€)","Data finanziamento (gg/mm/aaaa)","Scadenza finanziamento (gg/mm/aaaa)","Tipologia di operazione garantita (Identificazione in base al piano tariffario del confidi)","Importo garantito (€)","Premio di garanzia pagato dall'impresa (€)","Quota del premio pagato, espressa in % sul garantito","Agevolazione connessa al rilascio garanzia, ESL (€) ","Data concessione garanzia (gg/mm/aaaa)","Data validità garanzia (gg/mm/aaaa)","Importo delle perdite liquidate (€)","Data liquidazione delle perdite (gg/mm/aaaa)","Soggetto finanziatore in favore del quale la perdita è liquidata","Garanzie concesse a valere fondo rischi di cui all’art. 2 del:","Note"]
[null,{"$f":"ROW()-4","v":1}]
[null,{"$f":"ROW()-4","v":2}]
[null,3]
[null,4]
[null,5]
[null,6]
[null,7]
[null,8]
[null,{"$f":"ROW()-4","v":9}]
[null,10]
[null,11]
[null,12]
[null,13]
[null,14]
[null,15]
[null,16]
[null,17]
[null,{"$f":"ROW()-4","v":18}]
[null,19]
[null,20]
[null,"Totale",null,{"$f":"SUBTOTAL(109,Tabella1[Importo finanziamento (€)])","v":0},null,null,null,{"$f":"SUBTOTAL(109,Tabella1[Importo garantito (€)])","v":0}]
[]
[]
[null,"Per inserire ulteriori garanzie è sufficiente aggiungere nuove righe all'interno della tabella."]